[Event "Betsys MČR v online bleskovém šachu 2021"]
[Site "Chess.com"]
[Date "2021.04.17"]
[Round "4"]
[White "sachovybukowski"]
[Black "Petroniuss"]
[Result "0-1"]
[WhiteElo "1995"]
[BlackElo "2300"]
[TimeControl "180+1"]
[EndTime "9:36:58 PDT"]
[Termination "Uživatel Petroniuss zvítězil matem"]

1. d4 {[%clk 0:03:00.9]} 1... d5 {[%clk 0:02:59.8]} 2. Bg5 {[%clk 0:03:00.3]}
2... Nf6 {[%clk 0:02:59.6]} 3. e3 {[%clk 0:03:00]} 3... Nbd7 {[%clk 0:02:58.6]}
4. f4 {[%clk 0:02:59.2]} 4... g6 {[%clk 0:02:56.5]} 5. Bd3 {[%clk 0:02:58.2]}
5... Bg7 {[%clk 0:02:56.6]} 6. Nf3 {[%clk 0:02:57.9]} 6... O-O {[%clk
0:02:56.6]} 7. O-O {[%clk 0:02:57.6]} 7... c5 {[%clk 0:02:56.8]} 8. c3 {[%clk
0:02:57.1]} 8... Ne4 {[%clk 0:02:53.1]} 9. Bh4 {[%clk 0:02:51.8]} 9... Ndf6
{[%clk 0:02:49.6]} 10. Nbd2 {[%clk 0:02:50.8]} 10... Bf5 {[%clk 0:02:45.2]} 11.
Qe2 {[%clk 0:02:49.5]} 11... c4 {[%clk 0:02:41.7]} 12. Bxe4 {[%clk 0:02:41.9]}
12... Bxe4 {[%clk 0:02:38.9]} 13. Bxf6 {[%clk 0:02:38.9]} 13... Bxf3 {[%clk
0:02:17.8]} 14. Qxf3 {[%clk 0:02:13.9]} 14... exf6 {[%clk 0:02:17]} 15. e4
{[%clk 0:02:13.2]} 15... dxe4 {[%clk 0:02:13.7]} 16. Nxe4 {[%clk 0:02:10.8]}
16... f5 {[%clk 0:01:57.7]} 17. Nd2 {[%clk 0:01:54.9]} 17... b5 {[%clk
0:01:57.3]} 18. a3 {[%clk 0:01:53.6]} 18... a5 {[%clk 0:01:49.3]} 19. Rae1
{[%clk 0:01:51.8]} 19... Qd7 {[%clk 0:01:25.5]} 20. Re2 {[%clk 0:01:46.6]} 20...
Rab8 {[%clk 0:01:13.9]} 21. Rfe1 {[%clk 0:01:45.3]} 21... Bf6 {[%clk 0:01:14.3]}
22. g3 {[%clk 0:01:43.7]} 22... Rfd8 {[%clk 0:01:09.5]} 23. Qe3 {[%clk 0:01:42]}
23... Kg7 {[%clk 0:01:06.6]} 24. h4 {[%clk 0:01:29.7]} 24... h5 {[%clk
0:01:04.6]} 25. Qf3 {[%clk 0:01:25.3]} 25... Qc7 {[%clk 0:00:53.6]} 26. Kg2
{[%clk 0:01:20.6]} 26... b4 {[%clk 0:00:53.7]} 27. axb4 {[%clk 0:01:11.8]} 27...
axb4 {[%clk 0:00:54.6]} 28. Qe3 {[%clk 0:01:03.1]} 28... bxc3 {[%clk 0:00:53.9]}
29. bxc3 {[%clk 0:01:02.5]} 29... Rb2 {[%clk 0:00:50.7]} 30. Nf3 {[%clk
0:00:57]} 30... Rdb8 {[%clk 0:00:45.2]} 31. Kh3 {[%clk 0:00:48.4]} 31... Rxe2
{[%clk 0:00:41]} 32. Rxe2 {[%clk 0:00:47.6]} 32... Rb1 {[%clk 0:00:40.1]} 33.
Qe8 {[%clk 0:00:42.7]} 33... Qb7 {[%clk 0:00:34.9]} 34. Qe3 {[%clk 0:00:10.4]}
34... Rd1 {[%clk 0:00:29.3]} 35. Rd2 {[%clk 0:00:06.4]} 35... Rxd2 {[%clk
0:00:27.6]} 36. Nxd2 {[%clk 0:00:05.9]} 36... Qh1# {[%clk 0:00:26.7]} 0-1

[Event "Betsys MČR v online bleskovém šachu 2021"]
[Site "Chess.com"]
[Date "2021.04.17"]
[Round "4"]
[White "Svandik49"]
[Black "penguinorodriguez"]
[Result "0-1"]
[WhiteElo "2271"]
[BlackElo "2556"]
[TimeControl "180+1"]
[EndTime "9:37:02 PDT"]
[Termination "Uživatel penguinorodriguez zvítězil na čas"]

1. Nf3 {[%clk 0:02:59.2]} 1... d5 {[%clk 0:03:00.1]} 2. g3 {[%clk 0:02:59.5]}
2... Nc6 {[%clk 0:03:00.2]} 3. d4 {[%clk 0:02:57.2]} 3... Bf5 {[%clk 0:02:58.2]}
4. Bg2 {[%clk 0:02:57.2]} 4... e6 {[%clk 0:02:58.2]} 5. O-O {[%clk 0:02:56.7]}
5... Nb4 {[%clk 0:02:58.6]} 6. Na3 {[%clk 0:02:55.3]} 6... Be7 {[%clk
0:02:58.4]} 7. c3 {[%clk 0:02:52]} 7... Nc6 {[%clk 0:02:58.4]} 8. Nb1 {[%clk
0:02:38]} 8... Nf6 {[%clk 0:02:52]} 9. Re1 {[%clk 0:02:34.8]} 9... O-O {[%clk
0:02:37.2]} 10. Nbd2 {[%clk 0:02:33.6]} 10... Ne4 {[%clk 0:02:37]} 11. Nxe4
{[%clk 0:02:27.8]} 11... Bxe4 {[%clk 0:02:37.9]} 12. Bf4 {[%clk 0:02:22.4]}
12... g5 {[%clk 0:02:30.4]} 13. Be3 {[%clk 0:02:15]} 13... f5 {[%clk 0:02:29.2]}
14. Qc1 {[%clk 0:02:03.4]} 14... g4 {[%clk 0:02:07.1]} 15. Ne5 {[%clk
0:01:40.3]} 15... Nxe5 {[%clk 0:02:05.2]} 16. dxe5 {[%clk 0:01:41.2]} 16... Bxg2
{[%clk 0:02:04.9]} 17. Kxg2 {[%clk 0:01:40.8]} 17... c5 {[%clk 0:02:03.5]} 18.
Qd2 {[%clk 0:01:34.1]} 18... Qc7 {[%clk 0:01:52.6]} 19. Bf4 {[%clk 0:01:26.7]}
19... Rfd8 {[%clk 0:01:51.5]} 20. h3 {[%clk 0:01:18.7]} 20... d4 {[%clk
0:01:43.7]} 21. hxg4 {[%clk 0:01:17.6]} 21... fxg4 {[%clk 0:01:40.3]} 22. c4
{[%clk 0:01:14]} 22... Qc6+ {[%clk 0:01:36.5]} 23. f3 {[%clk 0:01:14.3]} 23...
d3 {[%clk 0:01:33.6]} 24. e4 {[%clk 0:00:43.7]} 24... gxf3+ {[%clk 0:01:25.2]}
25. Kxf3 {[%clk 0:00:43.1]} 25... Rd4 {[%clk 0:01:23.2]} 26. b3 {[%clk
0:00:42.9]} 26... Rf8 {[%clk 0:01:13.1]} 27. Re3 {[%clk 0:00:38]} 27... Bg5
{[%clk 0:00:41]} 28. Rae1 {[%clk 0:00:28.1]} 28... Qc7 {[%clk 0:00:35.4]} 29.
Rxd3 {[%clk 0:00:16.9]} 29... Qxe5 {[%clk 0:00:29.8]} 30. Rxd4 {[%clk
0:00:16.2]} 30... cxd4 {[%clk 0:00:30.4]} 31. Rg1 {[%clk 0:00:06.8]} 31... Kh8
{[%clk 0:00:26.8]} 32. Rh1 {[%clk 0:00:04.7]} 32... Qg7 {[%clk 0:00:23.6]} 33.
c5 {[%clk 0:00:03.3]} 33... e5 {[%clk 0:00:23.2]} 0-1

[Event "Betsys MČR v online bleskovém šachu 2021"]
[Site "Chess.com"]
[Date "2021.04.17"]
[Round "4"]
[White "KJ327NR"]
[Black "machajda"]
[Result "0-1"]
[WhiteElo "2314"]
[BlackElo "2035"]
[TimeControl "180+1"]
[EndTime "9:37:02 PDT"]
[Termination "Uživatel machajda zvítězil matem"]

1. e4 {[%clk 0:03:00.9]} 1... c5 {[%clk 0:03:00.3]} 2. Nf3 {[%clk 0:03:01]} 2...
d6 {[%clk 0:03:00.9]} 3. Bb5+ {[%clk 0:03:00.2]} 3... Bd7 {[%clk 0:03:00.1]} 4.
Bxd7+ {[%clk 0:02:59.3]} 4... Qxd7 {[%clk 0:03:01]} 5. c4 {[%clk 0:02:52.4]}
5... Nc6 {[%clk 0:03:00.6]} 6. d4 {[%clk 0:02:50.4]} 6... cxd4 {[%clk
0:03:01.5]} 7. Nxd4 {[%clk 0:02:50.3]} 7... Nf6 {[%clk 0:03:02]} 8. Nc3 {[%clk
0:02:50.1]} 8... g6 {[%clk 0:03:02.2]} 9. f3 {[%clk 0:02:44.4]} 9... Bg7 {[%clk
0:03:02.6]} 10. Be3 {[%clk 0:02:44.3]} 10... O-O {[%clk 0:03:02.8]} 11. O-O
{[%clk 0:02:44]} 11... a6 {[%clk 0:03:02.4]} 12. Rc1 {[%clk 0:02:42.4]} 12...
Rfc8 {[%clk 0:03:02.7]} 13. b3 {[%clk 0:02:41.8]} 13... Qd8 {[%clk 0:03:02.4]}
14. Qd3 {[%clk 0:02:36.4]} 14... Nd7 {[%clk 0:03:02.4]} 15. Nxc6 {[%clk
0:02:32.4]} 15... bxc6 {[%clk 0:03:01.1]} 16. Rfd1 {[%clk 0:02:24.8]} 16... Qc7
{[%clk 0:02:57.5]} 17. Na4 {[%clk 0:02:22]} 17... Rd8 {[%clk 0:02:47.4]} 18. Qe2
{[%clk 0:02:13.5]} 18... Rac8 {[%clk 0:02:38.4]} 19. c5 {[%clk 0:02:06]} 19...
dxc5 {[%clk 0:02:37.3]} 20. Nxc5 {[%clk 0:02:01.5]} 20... Nxc5 {[%clk
0:02:35.3]} 21. Bxc5 {[%clk 0:01:58.4]} 21... Qb7 {[%clk 0:02:35]} 22. Rxd8+
{[%clk 0:01:56.4]} 22... Rxd8 {[%clk 0:02:35.9]} 23. Rd1 {[%clk 0:01:51.1]}
23... Rd7 {[%clk 0:02:18.9]} 24. Rxd7 {[%clk 0:00:41]} 24... Qxd7 {[%clk
0:02:19.8]} 25. Qxa6 {[%clk 0:00:38.1]} 25... Qd1+ {[%clk 0:02:18.2]} 26. Qf1
{[%clk 0:00:34.5]} 26... Bd4+ {[%clk 0:02:14.1]} 27. Bxd4 {[%clk 0:00:32.4]}
27... Qxd4+ {[%clk 0:02:15]} 28. Kh1 {[%clk 0:00:32.4]} 28... Qb2 {[%clk
0:02:14.1]} 29. a4 {[%clk 0:00:29.4]} 29... Qxb3 {[%clk 0:02:12.1]} 30. a5
{[%clk 0:00:29.3]} 30... Qa4 {[%clk 0:02:08.5]} 31. a6 {[%clk 0:00:27.5]} 31...
c5 {[%clk 0:02:07.3]} 32. h4 {[%clk 0:00:23.5]} 32... c4 {[%clk 0:02:05.4]} 33.
a7 {[%clk 0:00:20.6]} 33... Qxa7 {[%clk 0:02:03.9]} 34. Qxc4 {[%clk 0:00:20.1]}
34... Qa1+ {[%clk 0:02:04.2]} 35. Kh2 {[%clk 0:00:19]} 35... Qe5+ {[%clk
0:02:04.5]} 36. g3 {[%clk 0:00:18.8]} 36... Qb2+ {[%clk 0:02:04.1]} 37. Kh3
{[%clk 0:00:18.7]} 37... Qf2 {[%clk 0:01:55.7]} 38. Qc8+ {[%clk 0:00:16.8]}
38... Kg7 {[%clk 0:01:55.5]} 39. Qc3+ {[%clk 0:00:16.1]} 39... Kg8 {[%clk
0:01:55.2]} 40. h5 {[%clk 0:00:12.2]} 40... Qg1 {[%clk 0:01:30.8]} 41. Qc8+
{[%clk 0:00:01.9]} 41... Kg7 {[%clk 0:01:30.2]} 42. Qc3+ {[%clk 0:00:02.8]}
42... Kg8 {[%clk 0:01:29]} 43. h6 {[%clk 0:00:03.1]} 43... Qh1+ {[%clk
0:01:27.5]} 44. Kg4 {[%clk 0:00:03.3]} 44... Qxh6 {[%clk 0:01:26.2]} 45. Qc8+
{[%clk 0:00:02.5]} 45... Qf8 {[%clk 0:01:25.7]} 46. Qc3 {[%clk 0:00:01.6]} 46...
Qd8 {[%clk 0:01:22.8]} 47. Qe3 {[%clk 0:00:01.4]} 47... Qd7+ {[%clk 0:01:21]}
48. Kg5 {[%clk 0:00:02.1]} 48... Kg7 {[%clk 0:01:16.2]} 49. g4 {[%clk
0:00:01.7]} 49... Qc7 {[%clk 0:01:06.6]} 50. e5 {[%clk 0:00:01.7]} 50... f6+
{[%clk 0:01:03.8]} 51. exf6+ {[%clk 0:00:02.6]} 51... exf6+ {[%clk 0:01:03.9]}
52. Kh4 {[%clk 0:00:02]} 52... Qh2# {[%clk 0:01:04]} 0-1

[Event "Betsys MČR v online bleskovém šachu 2021"]
[Site "Chess.com"]
[Date "2021.04.17"]
[Round "4"]
[White "sachmaty8"]
[Black "DenryS"]
[Result "0-1"]
[WhiteElo "1820"]
[BlackElo "2122"]
[TimeControl "180+1"]
[EndTime "9:37:02 PDT"]
[Termination "Uživatel DenryS zvítězil matem"]

1. e4 {[%clk 0:03:00.9]} 1... c5 {[%clk 0:02:58.8]} 2. Nf3 {[%clk 0:03:00.5]}
2... Nc6 {[%clk 0:02:59.2]} 3. c3 {[%clk 0:03:00.2]} 3... d5 {[%clk 0:02:58.6]}
4. exd5 {[%clk 0:02:55.9]} 4... Qxd5 {[%clk 0:02:59.5]} 5. d4 {[%clk 0:02:55.7]}
5... Bf5 {[%clk 0:02:52.4]} 6. Be2 {[%clk 0:02:53]} 6... cxd4 {[%clk 0:02:44.1]}
7. cxd4 {[%clk 0:02:50.5]} 7... e5 {[%clk 0:02:44.3]} 8. dxe5 {[%clk 0:02:44.3]}
8... Bb4+ {[%clk 0:02:42.9]} 9. Nc3 {[%clk 0:02:43.7]} 9... Qa5 {[%clk
0:02:35.5]} 10. Qb3 {[%clk 0:02:25.1]} 10... Be6 {[%clk 0:02:34.4]} 11. Qc2
{[%clk 0:02:21.8]} 11... Bxc3+ {[%clk 0:02:31.5]} 12. bxc3 {[%clk 0:02:15.4]}
12... Nxe5 {[%clk 0:02:28.3]} 13. O-O {[%clk 0:02:10.8]} 13... Ne7 {[%clk
0:02:25.1]} 14. Bf4 {[%clk 0:02:01.9]} 14... N5g6 {[%clk 0:01:57.5]} 15. Bd6
{[%clk 0:01:54]} 15... O-O {[%clk 0:01:51.4]} 16. Nd4 {[%clk 0:01:46.8]} 16...
Qd5 {[%clk 0:01:40.2]} 17. Ba3 {[%clk 0:01:18.6]} 17... Rac8 {[%clk 0:01:22.6]}
18. Qb2 {[%clk 0:01:12.4]} 18... b6 {[%clk 0:01:04.4]} 19. Bf3 {[%clk
0:01:08.9]} 19... Qc4 {[%clk 0:00:58.3]} 20. Rac1 {[%clk 0:00:53.2]} 20... Bd5
{[%clk 0:00:54.7]} 21. Bxd5 {[%clk 0:00:50.7]} 21... Qxd5 {[%clk 0:00:54.9]} 22.
Rfe1 {[%clk 0:00:51]} 22... Rfe8 {[%clk 0:00:52.9]} 23. Nf3 {[%clk 0:00:46.4]}
23... Nf5 {[%clk 0:00:42.6]} 24. h3 {[%clk 0:00:41.7]} 24... Nf4 {[%clk
0:00:40.1]} 25. Rxe8+ {[%clk 0:00:08]} 25... Rxe8 {[%clk 0:00:38.5]} 26. Rf1
{[%clk 0:00:06.8]} 26... Nxh3+ {[%clk 0:00:35.4]} 27. Kh2 {[%clk 0:00:07.4]}
27... Nf4 {[%clk 0:00:30.9]} 28. Qb4 {[%clk 0:00:06.6]} 28... Ng6 {[%clk
0:00:23.3]} 29. Re1 {[%clk 0:00:06.3]} 29... Rxe1 {[%clk 0:00:18.3]} 30. Nxe1
{[%clk 0:00:07.2]} 30... Qe5+ {[%clk 0:00:18.1]} 31. g3 {[%clk 0:00:05.8]} 31...
Qxe1 {[%clk 0:00:18]} 32. Qc4 {[%clk 0:00:04.3]} 32... Qxf2+ {[%clk 0:00:17.3]}
33. Kh1 {[%clk 0:00:04.9]} 33... Nxg3# {[%clk 0:00:16.6]} 0-1

[Event "Betsys MČR v online bleskovém šachu 2021"]
[Site "Chess.com"]
[Date "2021.04.17"]
[Round "4"]
[White "ghostdog777"]
[Black "jhdghaka"]
[Result "1-0"]
[WhiteElo "2226"]
[BlackElo "1870"]
[TimeControl "180+1"]
[EndTime "9:37:03 PDT"]
[Termination "Uživatel ghostdog777 zvítězil po vzdání soupeře"]

1. e4 {[%clk 0:03:00.9]} 1... c5 {[%clk 0:02:59.6]} 2. Nf3 {[%clk 0:02:59.7]}
2... Nc6 {[%clk 0:03:00.1]} 3. Bb5 {[%clk 0:02:59.6]} 3... g6 {[%clk 0:02:59.4]}
4. Bxc6 {[%clk 0:02:59.4]} 4... bxc6 {[%clk 0:02:58.8]} 5. O-O {[%clk
0:02:58.1]} 5... Bg7 {[%clk 0:02:58.9]} 6. Re1 {[%clk 0:02:57.8]} 6... Nf6
{[%clk 0:02:53]} 7. Nc3 {[%clk 0:02:55.3]} 7... O-O {[%clk 0:02:52.5]} 8. e5
{[%clk 0:02:55.3]} 8... Nd5 {[%clk 0:02:52.5]} 9. Ne4 {[%clk 0:02:55.5]} 9...
Qb6 {[%clk 0:02:50]} 10. d3 {[%clk 0:02:52.7]} 10... f5 {[%clk 0:02:45.6]} 11.
exf6 {[%clk 0:02:45.7]} 11... Nxf6 {[%clk 0:02:45.4]} 12. Ned2 {[%clk 0:02:45]}
12... Qd8 {[%clk 0:02:22.8]} 13. Nc4 {[%clk 0:02:39.5]} 13... d5 {[%clk
0:02:19.7]} 14. Nce5 {[%clk 0:02:38.7]} 14... Bd7 {[%clk 0:02:20.4]} 15. Be3
{[%clk 0:02:30.1]} 15... d4 {[%clk 0:02:20.3]} 16. Bg5 {[%clk 0:02:22.8]} 16...
Rb8 {[%clk 0:02:01.8]} 17. b3 {[%clk 0:02:22.1]} 17... Rb7 {[%clk 0:01:56.1]}
18. Nxd7 {[%clk 0:02:16.7]} 18... Qxd7 {[%clk 0:01:54.3]} 19. Ne5 {[%clk
0:02:15.7]} 19... Qf5 {[%clk 0:01:43.4]} 20. Bh4 {[%clk 0:02:15.1]} 20... Rc7
{[%clk 0:01:16.2]} 21. Bxf6 {[%clk 0:01:24.5]} 21... Bxf6 {[%clk 0:00:56.1]} 22.
Nf3 {[%clk 0:01:21.1]} 22... g5 {[%clk 0:00:33.2]} 23. Qe2 {[%clk 0:01:15.1]}
23... g4 {[%clk 0:00:29.9]} 24. Nd2 {[%clk 0:01:14.9]} 24... Bh4 {[%clk
0:00:20.6]} 25. g3 {[%clk 0:01:08.4]} 25... Bg5 {[%clk 0:00:20.9]} 26. Nc4
{[%clk 0:01:01.4]} 26... Kh8 {[%clk 0:00:17.4]} 27. Rf1 {[%clk 0:00:53.8]} 27...
e6 {[%clk 0:00:13.1]} 28. Rae1 {[%clk 0:00:53.3]} 28... Re7 {[%clk 0:00:13.5]}
29. Qe4 {[%clk 0:00:53.1]} 29... Qf6 {[%clk 0:00:08.3]} 30. Qxg4 {[%clk
0:00:47.7]} 30... Rg8 {[%clk 0:00:05.5]} 31. Qe4 {[%clk 0:00:46.6]} 31... h5
{[%clk 0:00:05.4]} 32. Qe5 {[%clk 0:00:46.4]} 32... h4 {[%clk 0:00:04.9]} 33.
Qxf6+ {[%clk 0:00:45.8]} 33... Bxf6 {[%clk 0:00:05.5]} 34. Re4 {[%clk 0:00:44]}
34... h3 {[%clk 0:00:05.8]} 35. Rfe1 {[%clk 0:00:43.1]} 35... Rge8 {[%clk
0:00:04.3]} 36. f4 {[%clk 0:00:42.9]} 36... Kh7 {[%clk 0:00:04.4]} 37. Kf2
{[%clk 0:00:42.2]} 37... Kg6 {[%clk 0:00:04.7]} 38. Kf3 {[%clk 0:00:42.2]} 38...
Kf5 {[%clk 0:00:05]} 39. g4+ {[%clk 0:00:42.2]} 39... Kg6 {[%clk 0:00:05.4]} 40.
Kg3 {[%clk 0:00:41.4]} 40... Rh7 {[%clk 0:00:02.2]} 41. Rxe6 {[%clk 0:00:40]}
41... Rd8 {[%clk 0:00:02.1]} 42. g5 {[%clk 0:00:38.7]} 1-0

[Event "Betsys MČR v online bleskovém šachu 2021"]
[Site "Chess.com"]
[Date "2021.04.17"]
[Round "4"]
[White "SamikGame"]
[Black "Drak1961"]
[Result "0-1"]
[WhiteElo "1644"]
[BlackElo "2093"]
[TimeControl "180+1"]
[EndTime "9:37:03 PDT"]
[Termination "Uživatel Drak1961 zvítězil po vzdání soupeře"]

1. e4 {[%clk 0:02:58.5]} 1... c5 {[%clk 0:02:58.3]} 2. c4 {[%clk 0:02:55.9]}
2... Nc6 {[%clk 0:02:56.8]} 3. Nc3 {[%clk 0:02:52.6]} 3... e6 {[%clk 0:02:53.5]}
4. g3 {[%clk 0:02:41.5]} 4... g6 {[%clk 0:02:52.7]} 5. Bg2 {[%clk 0:02:39]} 5...
Bg7 {[%clk 0:02:52.3]} 6. Nge2 {[%clk 0:02:33.4]} 6... Nge7 {[%clk 0:02:50.1]}
7. d3 {[%clk 0:02:27.7]} 7... Rb8 {[%clk 0:02:47.2]} 8. O-O {[%clk 0:02:23]}
8... O-O {[%clk 0:02:45.2]} 9. Be3 {[%clk 0:02:15]} 9... d6 {[%clk 0:02:44.2]}
10. Qd2 {[%clk 0:02:03.7]} 10... a6 {[%clk 0:02:40.2]} 11. a4 {[%clk 0:01:51.6]}
11... Nd4 {[%clk 0:02:35.2]} 12. Rab1 {[%clk 0:01:29]} 12... Bd7 {[%clk
0:02:09.2]} 13. b3 {[%clk 0:01:15.9]} 13... b5 {[%clk 0:01:58.4]} 14. axb5
{[%clk 0:01:12.8]} 14... axb5 {[%clk 0:01:57.4]} 15. cxb5 {[%clk 0:01:10.2]}
15... Nxb5 {[%clk 0:01:53.3]} 16. Nxb5 {[%clk 0:01:05.2]} 16... Rxb5 {[%clk
0:01:51.7]} 17. d4 {[%clk 0:00:46.8]} 17... Qc7 {[%clk 0:01:47.5]} 18. dxc5
{[%clk 0:00:41.5]} 18... dxc5 {[%clk 0:01:46.2]} 19. Nc3 {[%clk 0:00:36.4]}
19... Rb4 {[%clk 0:01:41.3]} 20. Rfc1 {[%clk 0:00:23]} 20... Rfb8 {[%clk
0:01:35.3]} 21. Qd1 {[%clk 0:00:15.6]} 21... Be8 {[%clk 0:01:24]} 22. Na2 {[%clk
0:00:12.2]} 22... R4b5 {[%clk 0:01:17.4]} 23. b4 {[%clk 0:00:08.6]} 23... Qa7
{[%clk 0:01:00.7]} 24. bxc5 {[%clk 0:00:04.7]} 24... Qxa2 {[%clk 0:00:56.4]} 25.
Rxb5 {[%clk 0:00:04.8]} 25... Rxb5 {[%clk 0:00:45.1]} 26. c6 {[%clk 0:00:04.8]}
26... Rb8 {[%clk 0:00:42]} 27. c7 {[%clk 0:00:03.9]} 27... Rc8 {[%clk
0:00:41.7]} 28. e5 {[%clk 0:00:04]} 28... Qa5 {[%clk 0:00:37.8]} 29. Bb7 {[%clk
0:00:03.7]} 29... Rxc7 {[%clk 0:00:34.9]} 30. Rxc7 {[%clk 0:00:02.7]} 30... Qxc7
{[%clk 0:00:33.9]} 31. Be4 {[%clk 0:00:02.8]} 31... Bxe5 {[%clk 0:00:30.9]} 32.
Qf3 {[%clk 0:00:02.3]} 32... Nf5 {[%clk 0:00:26.2]} 33. Bxf5 {[%clk 0:00:02.7]}
33... exf5 {[%clk 0:00:24.4]} 34. Kg2 {[%clk 0:00:03.5]} 34... Bc6 {[%clk
0:00:22.9]} 35. Qxc6 {[%clk 0:00:02.6]} 35... Qxc6+ {[%clk 0:00:21.9]} 36. Kg1
{[%clk 0:00:03.5]} 0-1

[Event "Betsys MČR v online bleskovém šachu 2021"]
[Site "Chess.com"]
[Date "2021.04.17"]
[Round "4"]
[White "Mitram64"]
[Black "Hroch-hroch"]
[Result "1-0"]
[WhiteElo "2018"]
[BlackElo "2263"]
[TimeControl "180+1"]
[EndTime "9:37:04 PDT"]
[Termination "Uživatel Mitram64 zvítězil na čas"]

1. d4 {[%clk 0:03:00.9]} 1... d5 {[%clk 0:02:53.7]} 2. Nf3 {[%clk 0:03:00.6]}
2... Nf6 {[%clk 0:02:52]} 3. Bf4 {[%clk 0:03:00.1]} 3... e6 {[%clk 0:02:51]} 4.
e3 {[%clk 0:02:59.6]} 4... c5 {[%clk 0:02:50.9]} 5. c3 {[%clk 0:02:58.5]} 5...
Bd6 {[%clk 0:02:37.8]} 6. Ne5 {[%clk 0:02:55.8]} 6... Qc7 {[%clk 0:02:28.8]} 7.
Nd2 {[%clk 0:02:52.1]} 7... O-O {[%clk 0:02:20.8]} 8. Bd3 {[%clk 0:02:50.6]}
8... Nc6 {[%clk 0:02:04.4]} 9. Ndf3 {[%clk 0:02:37.1]} 9... Ne4 {[%clk
0:01:59.7]} 10. Nxc6 {[%clk 0:02:27.4]} 10... Bxf4 {[%clk 0:01:51.4]} 11. exf4
{[%clk 0:02:24.7]} 11... bxc6 {[%clk 0:01:37.3]} 12. g3 {[%clk 0:02:23.3]} 12...
cxd4 {[%clk 0:01:30.4]} 13. Nxd4 {[%clk 0:02:18.9]} 13... c5 {[%clk 0:01:23.8]}
14. Nf3 {[%clk 0:02:11.3]} 14... Qb6 {[%clk 0:01:14.9]} 15. Qe2 {[%clk 0:02:02]}
15... Nf6 {[%clk 0:01:08.5]} 16. O-O {[%clk 0:01:59.9]} 16... a5 {[%clk
0:01:08.3]} 17. Ne5 {[%clk 0:01:57.3]} 17... Ba6 {[%clk 0:01:04.2]} 18. Bxa6
{[%clk 0:01:56.1]} 18... Qxa6 {[%clk 0:01:01.4]} 19. Qe3 {[%clk 0:01:48.9]}
19... Qb7 {[%clk 0:00:53.8]} 20. Rab1 {[%clk 0:01:47.4]} 20... Rac8 {[%clk
0:00:49.5]} 21. Rfd1 {[%clk 0:01:43.7]} 21... Rfd8 {[%clk 0:00:48.3]} 22. Rd2
{[%clk 0:01:30.6]} 22... c4 {[%clk 0:00:40.7]} 23. f3 {[%clk 0:01:25.1]} 23...
Nd7 {[%clk 0:00:35.8]} 24. Rbd1 {[%clk 0:01:20.1]} 24... Nxe5 {[%clk 0:00:32.6]}
25. Qxe5 {[%clk 0:01:18.7]} 25... g6 {[%clk 0:00:26.8]} 26. g4 {[%clk 0:01:14]}
26... Qc7 {[%clk 0:00:26]} 27. Qe3 {[%clk 0:01:12.8]} 27... Re8 {[%clk
0:00:19.1]} 28. Re1 {[%clk 0:01:12.3]} 28... Qd6 {[%clk 0:00:15.3]} 29. Qd4
{[%clk 0:01:09.4]} 29... Rcd8 {[%clk 0:00:14.8]} 30. Rde2 {[%clk 0:01:08.6]}
30... Rb8 {[%clk 0:00:14.2]} 31. f5 {[%clk 0:01:05.5]} 31... gxf5 {[%clk
0:00:12.6]} 32. gxf5 {[%clk 0:01:04.5]} 32... Qb6 {[%clk 0:00:12.3]} 33. Rg2+
{[%clk 0:00:49.4]} 33... Kf8 {[%clk 0:00:10.7]} 34. Qxb6 {[%clk 0:00:48.4]}
34... Rxb6 {[%clk 0:00:10.4]} 35. f6 {[%clk 0:00:48.6]} 35... Reb8 {[%clk
0:00:09.4]} 36. Ree2 {[%clk 0:00:47.5]} 36... a4 {[%clk 0:00:08.9]} 37. a3
{[%clk 0:00:45.6]} 37... Rc6 {[%clk 0:00:07.9]} 38. Rg7 {[%clk 0:00:43.1]} 38...
e5 {[%clk 0:00:07.4]} 39. Rxh7 {[%clk 0:00:42.4]} 39... Rxf6 {[%clk 0:00:07.1]}
40. Rh8+ {[%clk 0:00:42]} 40... Ke7 {[%clk 0:00:02.4]} 41. Rxb8 {[%clk
0:00:41.4]} 1-0

[Event "Betsys MČR v online bleskovém šachu 2021"]
[Site "Chess.com"]
[Date "2021.04.17"]
[Round "4"]
[White "Rognort"]
[Black "conysek"]
[Result "0-1"]
[WhiteElo "1801"]
[BlackElo "2114"]
[TimeControl "180+1"]
[EndTime "9:37:04 PDT"]
[Termination "Uživatel conysek zvítězil na čas"]

1. e4 {[%clk 0:03:00.9]} 1... e5 {[%clk 0:02:59.5]} 2. Nf3 {[%clk 0:03:00.7]}
2... Nc6 {[%clk 0:02:59.7]} 3. d4 {[%clk 0:02:59.5]} 3... exd4 {[%clk
0:02:59.6]} 4. Bc4 {[%clk 0:02:59.7]} 4... d6 {[%clk 0:02:57.8]} 5. Nxd4 {[%clk
0:02:58.8]} 5... Nf6 {[%clk 0:02:57]} 6. O-O {[%clk 0:02:56]} 6... Be7 {[%clk
0:02:56.6]} 7. Nc3 {[%clk 0:02:52.9]} 7... O-O {[%clk 0:02:53.9]} 8. h3 {[%clk
0:02:36.6]} 8... Nd7 {[%clk 0:02:52.8]} 9. f4 {[%clk 0:02:32.9]} 9... Nb6 {[%clk
0:02:52.2]} 10. Bb3 {[%clk 0:02:24.1]} 10... Nxd4 {[%clk 0:02:46]} 11. Qxd4
{[%clk 0:02:23.8]} 11... Bf6 {[%clk 0:02:44.4]} 12. Qd3 {[%clk 0:02:19.3]} 12...
Be6 {[%clk 0:02:37.6]} 13. Nd5 {[%clk 0:02:15]} 13... Bxd5 {[%clk 0:02:36.9]}
14. exd5 {[%clk 0:02:13.8]} 14... Re8 {[%clk 0:02:33.1]} 15. c3 {[%clk
0:02:02.5]} 15... Qd7 {[%clk 0:02:26.1]} 16. Bd2 {[%clk 0:01:52.8]} 16... Re7
{[%clk 0:02:25]} 17. Rae1 {[%clk 0:01:52.7]} 17... Rae8 {[%clk 0:02:25.5]} 18.
Bc2 {[%clk 0:01:31.9]} 18... g6 {[%clk 0:02:19.3]} 19. Rxe7 {[%clk 0:01:23.3]}
19... Rxe7 {[%clk 0:01:59.9]} 20. f5 {[%clk 0:01:23.5]} 20... Bh8 {[%clk
0:01:41.9]} 21. f6 {[%clk 0:01:12.9]} 21... Re5 {[%clk 0:01:38.9]} 22. c4 {[%clk
0:01:00.5]} 22... Qd8 {[%clk 0:01:30.2]} 23. Bc3 {[%clk 0:00:56.8]} 23... Re8
{[%clk 0:01:24.8]} 24. g4 {[%clk 0:00:40.6]} 24... Nd7 {[%clk 0:01:21.9]} 25. g5
{[%clk 0:00:39.9]} 25... Ne5 {[%clk 0:01:18]} 26. Bxe5 {[%clk 0:00:35.8]} 26...
Rxe5 {[%clk 0:01:18.9]} 27. h4 {[%clk 0:00:34.5]} 27... h6 {[%clk 0:01:15.1]}
28. Qg3 {[%clk 0:00:20.6]} 28... c6 {[%clk 0:01:08.1]} 29. Bb3 {[%clk
0:00:15.6]} 29... Qb6+ {[%clk 0:01:03]} 30. Kh2 {[%clk 0:00:12.7]} 30... Qd4
{[%clk 0:00:57.8]} 31. Rf4 {[%clk 0:00:09.7]} 31... Qxb2+ {[%clk 0:00:54.8]} 32.
Rf2 {[%clk 0:00:05.4]} 32... Qc1 {[%clk 0:00:47.8]} 33. Rg2 {[%clk 0:00:04.5]}
33... Qe1 {[%clk 0:00:36.1]} 34. Qh3 {[%clk 0:00:04.6]} 34... Qe3 {[%clk
0:00:32.6]} 35. Qc8+ {[%clk 0:00:04.3]} 35... Kh7 {[%clk 0:00:31.4]} 36. Qf8
{[%clk 0:00:04.3]} 36... Qf4+ {[%clk 0:00:30.1]} 37. Kh1 {[%clk 0:00:01.3]}
37... Re1+ {[%clk 0:00:28.7]} 0-1